bitfinex/quotes_SOLUSD_20240718
["timestamp","ask_amount","ask_price","bid_price","bid_amount"]
[1721269141124,1.26251665,157.47,157.4,22.2359]
[1721269141328,1.26251665,157.47,157.36,15.8861]
[1721269141532,1.26251665,157.47,157.37,6.3542]
[1721269141774,6.3516,157.44,157.36,15.8861]
[1721269141950,1.26251665,157.43,157.36,15.8861]
[1721269142422,6.3517,157.44,157.37,6.3544]
[1721269142621,1.26251665,157.43,157.37,6.3544]
[1721269142825,1.26251665,157.43,157.38,6.3539]
[1721269143022,1.26251665,157.45,157.36,15.8861]
[1721269143352,1.26251665,157.45,157.41,6.3528]
[1721269143536,21.26251665,157.47,157.41,6.3528]
[1721269143847,6.3524,157.43,157.36,15.8871]
[1721269144016,1.26251665,157.42,157.37,6.354]
[1721269144219,1.26251665,157.42,157.36,15.8871]
[1721269144421,1.26251665,157.42,157.37,6.3543]
[1721269144630,6.3529,157.41,157.36,15.8871]
[1721269144921,1.26251665,157.4,157.33,15.8899]
[1721269145121,6.3524,157.43,157.33,15.8899]
[1721269145445,1.26251665,157.42,157.39,6.3536]
[1721269145648,6.3522,157.43,157.37,15.8852]
[1721269145853,1.26251665,157.42,157.37,15.8852]
[1721269146055,20.0,157.47,157.34,15.8889]
[1721269146056,35.8768,157.47,157.34,15.8889]
[1721269146352,35.8768,157.47,157.32,31.7806]
[1721269146353,6.3515,157.45,157.38,6.3537]
[1721269146645,6.3508,157.46,157.39,6.3535]
[1721269146945,20.0,157.47,157.38,15.8844]
[1721269147161,1.26251665,157.46,157.4,15.8823]
[1721269147320,6.2784,157.48,157.44,6.3513]
[1721269147531,6.2784,157.48,157.43,1.27013352]
[1721269148030,6.2784,157.48,157.43,6.352]
[1721269148237,6.2784,157.48,157.44,15.8784]
[1721269148436,6.2784,157.48,157.45,6.3511]
[1721269148646,6.2784,157.48,157.44,15.8784]
[1721269149351,6.2784,157.48,157.45,6.3508]
[1721269150045,6.2784,157.48,157.44,22.2299]
[1721269150251,1.26251665,157.47,157.4,15.8822]
[1721269150441,1.26251665,157.47,157.42,22.2321]
[1721269150756,1.26251665,157.47,157.36,50.7431]
[1721269150757,6.2784,157.48,157.45,6.3511]
[1721269151843,6.2784,157.48,157.44,15.878]
[1721269152236,6.2784,157.48,157.44,22.2294]
[1721269153143,6.2784,157.48,157.45,6.351]
[1721269153928,1.26251665,157.5,157.46,6.3507]
[1721269154129,1.26251665,157.51,157.46,6.3507]
[1721269154330,1.26251665,157.51,157.44,15.878]
[1721269154331,7.61161665,157.51,157.44,22.2295]
[1721269154751,7.61141665,157.51,157.45,6.3511]
[1721269155155,1.26251665,157.51,157.45,6.3508]
[1721269155361,1.26251665,157.51,157.44,15.878]
[1721269155662,28.5367,157.52,157.41,31.764]
[1721269155663,6.224,157.52,157.49,6.3494]
[1721269155838,1.26251665,157.54,157.49,6.3494]
[1721269156360,1.26251665,157.55,157.51,6.3486]
[1721269156557,22.7714,157.56,157.51,15.8713]
[1721269156795,22.7714,157.56,157.51,22.2197]
[1721269157434,22.7714,157.56,157.52,6.3482]
[1721269157629,6.4276,157.56,157.52,6.3482]
[1721269157932,6.4276,157.56,157.53,6.3479]
[1721269158147,6.4276,157.56,157.54,6.3475]
[1721269158565,1.26251665,157.59,157.55,6.3471]
[1721269158747,17.60631665,157.6,157.56,6.3466]
[1721269159165,6.0357,157.61,157.57,6.3463]
[1721269159548,6.0357,157.61,157.57,15.8651]
[1721269159769,1.26251665,157.6,157.53,15.869]
[1721269159950,7.60781665,157.6,157.54,6.3475]
[1721269160146,1.26251665,157.6,157.54,6.3475]
[1721269160357,1.26251665,157.6,157.55,6.347]
[1721269161456,6.346,157.58,157.53,15.869]
[1721269161666,1.26251665,157.57,157.52,6.3481]
[1721269161853,7.60901665,157.57,157.5,15.8727]
[1721269162054,1.26251665,157.56,157.5,15.8727]
[1721269162484,6.3485,157.52,157.46,22.2269]
[1721269162789,17.28361665,157.56,157.43,15.8798]
[1721269162790,6.3492,157.5,157.43,15.8798]
[1721269163087,1.26251665,157.49,157.43,15.8798]
[1721269163379,6.3502,157.48,157.41,6.3527]
[1721269163588,1.26251665,157.47,157.41,6.3527]
[1721269163883,7.61291665,157.47,157.4,6.3532]
[1721269164054,1.26251665,157.46,157.41,6.3528]
[1721269164580,21.26251665,157.52,157.42,15.8809]
[1721269164796,20.0,157.54,157.42,15.8809]
[1721269164797,1.26251665,157.51,157.42,15.8809]
[1721269164956,7.61131665,157.51,157.45,6.3511]
[1721269165269,20.0,157.54,157.46,6.3507]
[1721269165270,7.61081665,157.53,157.46,6.3507]
[1721269165458,6.3484,157.52,157.44,22.2293]
[1721269165659,1.26251665,157.51,157.44,22.2293]
[1721269166056,1.26251665,157.53,157.44,15.8781]
[1721269166258,1.26251665,157.53,157.48,6.3499]
[1721269166681,1.26251665,157.53,157.47,15.876]
[1721269166682,1.26251665,157.53,157.49,6.3495]
[1721269167061,12.7944,157.55,157.48,1.26977577]
[1721269167269,1.26251665,157.54,157.43,15.879]
[1721269167453,6.3504,157.47,157.41,6.3527]
[1721269167653,15.8702,157.53,157.41,6.3527]
[1721269167654,1.26251665,157.46,157.41,6.3527]
[1721269167853,1.26251665,157.48,157.45,15.878]
[1721269168059,6.4472,157.55,157.41,52.67]
[1721269168262,1.26251665,157.54,157.51,15.8715]
[1721269169195,1.26251665,157.54,157.52,6.3481]
[1721269169982,1.26251665,157.54,157.51,15.8715]
[1721269170170,6.4472,157.55,157.51,15.8715]
[1721269170171,7.70971665,157.55,157.52,6.3483]
[1721269170480,1.26251665,157.54,157.52,6.3483]
[1721269170989,7.70971665,157.55,157.53,6.3479]
[1721269172194,6.4472,157.55,157.54,6.3475]
[1721269172691,6.4472,157.55,157.53,15.8691]
[1721269172881,6.4472,157.55,157.54,6.3475]
[1721269173186,7.54511665,157.6,157.56,6.3466]
[1721269173789,6.2826,157.6,157.58,6.3459]
[1721269174094,6.2826,157.6,157.59,6.3455]
[1721269174269,6.2826,157.6,157.57,22.2114]
[1721269174593,6.2826,157.6,157.57,15.8651]
[1721269175678,6.2826,157.6,157.57,22.2111]
[1721269175877,6.2826,157.6,157.58,6.3458]
[1721269176698,6.2826,157.6,157.59,6.3455]
[1721269176896,6.0313,157.64,157.59,6.3455]
[1721269177196,1.26251665,157.63,157.58,6.3459]
[1721269177405,7.60661665,157.63,157.57,22.2114]
[1721269177689,6.3443,157.62,157.54,15.8688]
[1721269177993,6.0313,157.64,157.55,6.347]
[1721269177994,7.60741665,157.61,157.55,6.347]
[1721269178204,7.60781665,157.6,157.54,15.8688]
[1721269178490,1.26251665,157.59,157.54,15.8688]
[1721269178697,1.26251665,157.61,157.57,6.3463]
[1721269178865,21.26251665,157.63,157.58,6.3456]
[1721269179070,21.26251665,157.63,157.56,15.866]
[1721269179679,6.3447,157.62,157.56,22.2127]
[1721269179863,7.60731665,157.61,157.56,15.866]
[1721269180069,1.26251665,157.6,157.57,6.346]
[1721269180290,1.26251665,157.62,157.56,15.866]
[1721269180474,1.26251665,157.62,157.59,6.3454]
[1721269180676,1.26251665,157.63,157.58,15.8643]
[1721269180885,1.26251665,157.63,157.59,6.3452]
[1721269181095,1.26251665,157.63,157.6,6.345]
[1721269181401,1.26251665,157.63,157.59,6.3454]
[1721269181582,1.26251665,157.63,157.59,7.61435392]
[1721269181784,1.26251665,157.63,157.6,6.3449]
[1721269182173,1.26251665,157.63,157.59,6.3455]
[1721269182386,1.26251665,157.63,157.58,22.2099]
[1721269182583,1.26251665,157.63,157.59,6.3454]
[1721269183097,1.26251665,157.63,157.58,22.2102]
[1721269183291,1.26251665,157.63,157.59,6.3455]
[1721269183495,1.26251665,157.63,157.59,7.61443675]
[1721269184092,1.26251665,157.63,157.58,15.8643]
[1721269184513,1.26251665,157.63,157.55,6.3468]
[1721269185008,6.3443,157.62,157.56,6.3466]
[1721269185299,1.26251665,157.61,157.55,6.3471]
[1721269185500,1.26251665,157.6,157.57,6.3462]
[1721269185702,1.26251665,157.62,157.56,6.3466]
[1721269186009,6.3456,157.59,157.54,15.8682]
[1721269186313,1.26251665,157.58,157.54,15.8682]
[1721269186489,1.26251665,157.57,157.53,6.3479]
[1721269186689,1.26251665,157.57,157.52,1.26939262]
[1721269186883,21.26251665,157.63,157.53,6.3479]
[1721269187193,6.3484,157.52,157.45,15.8779]
[1721269187399,1.26251665,157.51,157.47,6.3501]
[1721269187575,21.26251665,157.56,157.45,22.2287]
[1721269187771,6.3492,157.5,157.45,15.8779]
[1721269187976,45.0,157.55,157.38,34.85]
[1721269187977,7.61221665,157.49,157.43,6.3519]
[1721269188177,1.26251665,157.48,157.45,6.3511]
[1721269188407,6.3495,157.5,157.43,6.3516]
[1721269188605,1.26251665,157.49,157.44,6.3515]
[1721269189111,1.26251665,157.53,157.45,17.14790477]
[1721269189313,1.26251665,157.53,157.48,22.2248]
[1721269189684,1.26251665,157.53,157.49,1.26998973]
[1721269189894,1.26251665,157.55,157.51,15.8718]
[1721269190099,1.26251665,157.54,157.51,22.2205]
[1721269190380,1.26251665,157.56,157.51,15.8718]
[1721269191007,1.26251665,157.56,157.52,7.61774487]
[1721269191327,6.6181,157.57,157.54,15.8689]
[1721269191620,6.6181,157.57,157.55,6.3471]
[1721269191920,6.6181,157.57,157.54,15.8689]
[1721269193312,6.6181,157.57,157.52,6.3483]
[1721269194396,6.6181,157.57,157.53,6.3479]
[1721269194605,6.6181,157.57,157.53,15.8699]
[1721269194907,6.6181,157.57,157.53,22.2178]
[1721269195902,6.6181,157.57,157.53,15.8699]
[1721269196302,6.6181,157.57,157.51,6.3487]
[1721269196491,6.6181,157.57,157.5,15.8729]
[1721269196690,7.88061665,157.57,157.52,6.3482]
[1721269197621,6.6181,157.57,157.52,6.3482]
[1721269197918,6.6181,157.57,157.53,6.3478]
[1721269198131,6.6181,157.57,157.54,6.3475]
[1721269198328,6.3452,157.6,157.56,6.3467]
[1721269198329,1.26251665,157.6,157.56,6.3467]
[1721269198529,6.2232,157.61,157.58,6.3458]
[1721269198738,6.2232,157.61,157.59,6.3455]
[1721269199229,1.26251665,157.64,157.59,6.3455]
[1721269199613,1.26251665,157.64,157.58,6.3459]
[1721269199809,1.26251665,157.64,157.57,22.2113]
[1721269200210,7.60611665,157.64,157.57,22.2113]
[1721269200628,7.60611665,157.64,157.58,6.3458]
[1721269201335,1.26251665,157.64,157.57,15.865]
[1721269202232,6.3449,157.61,157.54,22.2161]
[1721269202530,1.26251665,157.6,157.57,6.3463]
[1721269202722,65.0,157.64,157.57,6.3463]
[1721269202723,1.26251665,157.62,157.57,6.3463]
[1721269203322,1.26251665,157.62,157.58,6.3459]
[1721269203725,1.26251665,157.63,157.59,6.3455]
[1721269204346,1.26251665,157.63,157.57,6.3463]
[1721269204514,1.26251665,157.63,157.58,6.3458]
[1721269204711,1.26251665,157.62,157.56,15.866]
[1721269204911,23.0248,157.65,157.61,6.3447]
[1721269205414,23.0248,157.65,157.62,6.3442]
[1721269205829,6.3447,157.62,157.56,22.2128]
[1721269206023,6.3444,157.62,157.56,15.8661]
[1721269206422,6.3444,157.62,157.5,85.6853]
[1721269206423,1.26251665,157.61,157.53,15.8696]
[1721269206755,6.3457,157.59,157.53,15.8696]
[1721269206961,1.26251665,157.63,157.53,15.8696]
[1721269207126,1.26251665,157.63,157.54,6.3475]
[1721269207327,6.3451,157.61,157.54,6.3475]
[1721269207630,1.26251665,157.6,157.54,6.3475]
[1721269208431,1.26251665,157.63,157.56,6.3467]
[1721269208633,1.26251665,157.63,157.57,1.26900747]
[1721269208849,7.60651665,157.63,157.58,1.26900409]
[1721269209428,1.26251665,157.63,157.51,15.8712]
[1721269209656,1.26251665,157.63,157.53,6.3476]
[1721269209657,6.3451,157.6,157.53,6.3476]
[1721269209853,35.8596,157.64,157.53,6.3476]
[1721269209854,23.0248,157.65,157.54,19.09]
[1721269210154,6.3442,157.63,157.56,22.2128]
[1721269210324,6.3444,157.62,157.56,22.2128]
[1721269210526,6.344,157.63,157.56,22.2128]
[1721269210731,6.3444,157.62,157.56,22.2128]
[1721269211255,7.60631665,157.64,157.58,6.3459]
[1721269211467,20.0,157.63,157.55,6.3469]
[1721269211753,1.26251665,157.62,157.55,6.3469]
[1721269211953,20.0,157.63,157.56,6.3466]
[1721269212254,27.60611665,157.64,157.57,6.3461]
[1721269212432,21.26251665,157.64,157.55,22.2141]
[1721269212853,6.3445,157.62,157.56,6.3466]
[1721269213057,27.60621665,157.64,157.55,15.8672]
[1721269213244,23.0248,157.65,157.57,15.8653]
[1721269213736,1.26251665,157.64,157.57,15.8653]
[1721269213938,29.3682,157.65,157.57,15.8653]
[1721269214144,29.3682,157.65,157.58,1.26892051]
[1721269214344,29.3682,157.65,157.57,15.8653]
[1721269214543,29.3682,157.65,157.58,6.3458]
[1721269215055,12.8995,157.65,157.59,6.3455]
[1721269215368,1.26251665,157.68,157.62,6.3442]
[1721269215674,6.3203,157.69,157.64,6.3432]
[1721269215835,6.3203,157.69,157.66,6.3427]
[1721269216034,1.26251665,157.72,157.67,1.26824295]
[1721269216250,28.6976,157.73,157.68,1.26817974]
[1721269216935,6.3407,157.72,157.68,1.26817974]
[1721269217132,1.26251665,157.72,157.59,19.09]
[1721269217360,6.342,157.68,157.61,6.3447]
[1721269217555,1.26251665,157.72,157.66,6.3426]
[1721269217962,6.3408,157.71,157.64,22.2017]
[1721269218265,7.60291665,157.72,157.65,6.343]
[1721269218639,6.3404,157.72,157.66,6.3426]
[1721269219042,22.3573,157.73,157.67,6.3423]
[1721269219242,1.26251665,157.72,157.61,50.8126]
[1721269219442,1.26251665,157.72,157.65,6.343]
[1721269219648,22.3573,157.73,157.67,6.3423]
[1721269220153,22.3573,157.73,157.68,6.3416]
[1721269220333,22.3573,157.73,157.67,22.1975]
[1721269220534,28.6972,157.73,157.67,22.1975]
[1721269220737,28.6972,157.73,157.67,15.8552]
[1721269220943,6.2968,157.73,157.67,15.8552]
[1721269221167,6.2968,157.73,157.68,7.60949991]
[1721269221374,7.91981665,157.77,157.72,6.3402]
[1721269221537,6.6573,157.77,157.75,6.3387]
[1721269221958,2.07248745,157.8,157.75,6.3387]
[1721269222137,0.8099708,157.8,157.76,1.26754632]
[1721269222869,0.8099708,157.8,157.77,1.26746875]
[1721269223168,0.8099708,157.8,157.78,6.3379]
[1721269223362,0.8099708,157.8,157.77,6.3383]
[1721269223745,0.8099708,157.8,157.78,7.60508438]
[1721269223948,0.8099708,157.8,157.78,6.3378]
[1721269225439,0.8099708,157.8,157.75,15.8468]
[1721269225642,1.26251665,157.79,157.65,82.7155]
[1721269225982,16.6314,157.78,157.68,15.8547]
[1721269226150,6.3407,157.72,157.65,22.2009]
[1721269226471,1.26251665,157.75,157.65,15.8578]
[1721269226769,6.3396,157.74,157.66,1.26805578]
[1721269226971,6.34,157.73,157.66,6.3424]
[1721269227154,7.60161665,157.75,157.68,6.3418]
[1721269227343,7.60161665,157.75,157.69,7.60950506]
[1721269227550,13.99851665,157.76,157.7,6.341]
[1721269227775,6.3973,157.76,157.67,19.09]
[1721269228075,0.8099708,157.8,157.75,6.3391]
[1721269228302,0.8099708,157.8,157.76,7.60610117]
[1721269228459,0.8099708,157.8,157.75,6.339]
[1721269228660,0.8099708,157.8,157.76,6.3386]
[1721269228900,0.8099708,157.8,157.77,1.26742755]
[1721269229395,0.8099708,157.8,157.78,1.26738416]
[1721269229596,0.8099708,157.8,157.74,15.8486]
[1721269230293,7.1471708,157.8,157.74,15.8486]
[1721269230585,0.8099708,157.8,157.75,1.26748778]
[1721269230903,0.8099708,157.8,157.76,7.60618478]
[1721269231384,0.8099708,157.8,157.71,15.8518]
[1721269231587,6.3385,157.77,157.71,15.8518]
[1721269231796,6.3388,157.76,157.71,15.8518]
[1721269232087,6.4025,157.76,157.71,15.8518]
[1721269232267,6.4025,157.76,157.73,6.3399]
[1721269232476,6.4025,157.76,157.74,1.26774247]
[1721269234293,0.8099708,157.8,157.77,1.26739918]
[1721269234693,0.8099708,157.8,157.78,6.3376]
[1721269234874,0.8099708,157.8,157.79,1.26731327]
[1721269235191,0.8099708,157.8,157.77,22.1834]
[1721269235500,0.8099708,157.8,157.74,15.8486]
[1721269235701,0.8099708,157.8,157.75,6.339]
[1721269235901,2.07248745,157.8,157.74,22.1881]
[1721269236985,0.8099708,157.8,157.74,15.8486]
[1721269238096,0.8099708,157.8,157.75,6.339]
[1721269238308,0.8099708,157.8,157.74,22.188]
[1721269238904,0.8099708,157.8,157.65,66.565]
[1721269238905,1.26251665,157.79,157.65,66.565]
[1721269239206,6.3404,157.72,157.65,15.8575]
[1721269239798,6.3404,157.72,157.66,6.3426]
[1721269239981,6.3399,157.73,157.66,6.3426]
[1721269240171,6.3408,157.71,157.65,15.8575]
[1721269240372,6.4557,157.69,157.62,15.8606]
[1721269240572,6.3423,157.67,157.6,6.3451]
[1721269240808,17.36501665,157.68,157.59,15.8639]
[1721269240809,6.3432,157.65,157.59,15.8639]
[1721269241109,1.26251665,157.66,157.6,6.345]
[1721269241602,1.26251665,157.66,157.59,22.2094]
[1721269241977,1.26251665,157.66,157.6,7.61370491]
[1721269242177,16.1025,157.68,157.62,15.8607]
[1721269242402,17.36501665,157.68,157.62,15.8607]
[1721269242986,1.26251665,157.67,157.62,15.8607]
[1721269243195,7.60501665,157.67,157.6,6.3451]
[1721269243393,1.26251665,157.67,157.61,6.3447]
[1721269244112,1.26251665,157.67,157.6,6.3451]
[1721269244503,7.60521665,157.67,157.6,6.3451]
[1721269244912,17.36501665,157.68,157.61,1.26868226]
[1721269245087,17.36501665,157.68,157.63,6.3439]
[1721269245417,6.4557,157.69,157.64,1.26854867]
[1721269245717,6.4557,157.69,157.59,1.26839732]
[1721269245912,6.4557,157.69,157.65,6.3431]
[1721269246217,6.4557,157.69,157.64,7.61189746]
[1721269246393,6.4557,157.69,157.65,1.26839843]
[1721269247210,6.4557,157.69,157.63,15.859]
[1721269247516,6.4557,157.69,157.64,6.3434]
[1721269247816,6.4557,157.69,157.65,1.26839957]
[1721269248012,6.4557,157.69,157.66,6.3426]
[1721269248222,6.4557,157.69,157.66,7.61099957]
[1721269248407,6.4557,157.69,157.63,15.859]
[1721269248814,6.4557,157.69,157.63,22.2026]
[1721269249112,6.4557,157.69,157.64,6.3434]
[1721269249506,6.3428,157.66,157.6,6.3451]
[1721269249706,1.26251665,157.68,157.6,6.3451]
[1721269249707,6.3423,157.67,157.6,6.3451]
[1721269249904,6.3428,157.66,157.59,6.3455]
[1721269251200,15.011,157.64,157.58,15.8642]
[1721269251528,1.26251665,157.63,157.58,15.8642]
[1721269251700,15.011,157.64,157.58,15.8642]
[1721269252232,15.011,157.64,157.58,22.2098]
[1721269252233,1.26251665,157.63,157.58,22.2098]
[1721269252400,15.011,157.64,157.58,15.8642]
[1721269253513,15.011,157.64,157.6,6.3451]
[1721269254507,15.011,157.64,157.61,7.61318767]
[1721269255419,15.011,157.64,157.6,6.3451]
[1721269255619,15.011,157.64,157.58,22.2097]
[1721269256323,15.011,157.64,157.59,6.3453]
[1721269256533,15.011,157.64,157.58,22.21]
[1721269256696,6.3539,157.63,157.54,15.8681]
[1721269256897,6.3539,157.63,157.54,22.2156]
[1721269256898,6.3448,157.61,157.54,22.2156]
[1721269257227,1.26251665,157.6,157.54,22.2156]
[1721269257609,1.26251665,157.6,157.55,6.3471]
[1721269257805,7.60771665,157.6,157.54,15.8681]
[1721269258007,1.26251665,157.59,157.52,6.3483]
[1721269258324,6.346,157.58,157.51,6.3484]
[1721269258522,6.3455,157.6,157.52,6.348]
[1721269258832,6.346,157.58,157.51,6.3487]
[1721269259000,6.346,157.58,157.52,6.3482]
[1721269259208,6.3455,157.6,157.52,6.3482]
[1721269259507,1.26251665,157.59,157.53,6.3479]
[1721269259724,7.60811665,157.59,157.52,6.3483]
[1721269260410,1.26251665,157.58,157.53,6.3479]
[1721269260618,1.26251665,157.58,157.5,15.872]
[1721269260619,1.26251665,157.58,157.52,6.3483]
[1721269261108,1.26251665,157.58,157.53,6.3479]
[1721269261437,1.26251665,157.58,157.5,15.872]
[1721269261438,15.8414,157.56,157.5,15.872]
[1721269261631,1.26251665,157.55,157.49,6.3492]
[1721269261813,17.10391665,157.56,157.5,6.349]
[1721269262132,17.10391665,157.56,157.46,31.753]
[1721269262133,15.8414,157.56,157.46,31.753]
[1721269262304,6.1426,157.57,157.56,6.3467]
[1721269262729,15.4608,157.61,157.58,6.3458]
[1721269262935,15.4608,157.61,157.5,53.94]
[1721269263117,23.06821665,157.61,157.55,6.3471]
[1721269263436,7.60781665,157.6,157.54,22.2163]
[1721269264239,7.60781665,157.6,157.54,15.8689]
[1721269264530,7.60781665,157.6,157.54,22.2163]
[1721269264730,1.26251665,157.6,157.54,22.2163]
[1721269265035,7.60801665,157.6,157.54,15.8689]
[1721269265610,6.3456,157.59,157.54,15.8689]
[1721269265828,21.26251665,157.58,157.5,15.8721]
[1721269266032,1.26251665,157.57,157.5,15.8721]
[1721269266342,1.26251665,157.57,157.51,6.3484]
[1721269267005,6.0568,157.56,157.5,22.2212]
[1721269267210,6.0568,157.56,157.43,15.4117]
[1721269267211,1.26251665,157.55,157.48,6.3499]
[1721269267411,1.26251665,157.54,157.48,6.3499]
[1721269267724,7.31931665,157.56,157.49,15.8732]
[1721269268115,7.31931665,157.56,157.49,22.2225]
[1721269268935,6.3472,157.55,157.49,22.2225]
[1721269269141,1.26251665,157.54,157.5,6.3491]
[1721269269311,7.31931665,157.56,157.51,6.3485]
[1721269270010,7.31931665,157.56,157.49,15.8732]
[1721269270538,6.0568,157.56,157.51,6.3487]
[1721269270750,6.0568,157.56,157.54,6.3471]
[1721269270916,6.0568,157.56,157.54,22.2157]
[1721269271235,6.0568,157.56,157.51,15.8718]
[1721269271930,6.0568,157.56,157.54,6.3472]
[1721269272233,6.0568,157.56,157.55,7.61639699]
[1721269272424,6.0568,157.56,157.5,15.8727]
[1721269272619,6.0568,157.56,157.51,6.3484]
[1721269272825,6.0568,157.56,157.53,6.3478]
[1721269273637,6.0568,157.56,157.52,22.2187]
[1721269274134,6.0568,157.56,157.52,15.8704]
[1721269274330,1.26251665,157.55,157.48,15.8741]
[1721269274554,1.26251665,157.54,157.48,15.8741]
[1721269274743,15.361,157.53,157.48,15.8741]
[1721269275965,15.361,157.53,157.48,22.224]
[1721269276251,15.361,157.53,157.5,6.3488]
[1721269276460,15.361,157.53,157.48,15.8741]
[1721269276461,15.361,157.53,157.51,7.61829637]
[1721269276637,15.361,157.53,157.51,6.3487]
[1721269276847,15.361,157.53,157.49,1.26959637]
[1721269277047,15.361,157.53,157.49,6.3495]
[1721269277554,21.709,157.53,157.48,15.8741]
[1721269277761,6.3492,157.5,157.45,15.8775]
[1721269278058,6.3492,157.5,157.43,6.352]
[1721269278256,6.3492,157.5,157.41,15.8816]
[1721269278257,6.1096,157.48,157.44,7.6243573]
[1721269278463,6.1096,157.48,157.43,6.3519]
[1721269278668,6.1096,157.48,157.44,13.97599346]
[1721269278841,6.1096,157.48,157.39,50.8573]
[1721269278842,26.2155,157.52,157.39,50.8573]
[1721269279036,6.2155,157.52,157.41,29.09]
[1721269279373,7.47801665,157.52,157.43,31.759]
[1721269279539,7.47801665,157.52,157.44,7.62425602]
[1721269279540,6.2155,157.52,157.44,7.62425602]
[1721269279742,6.3488,157.51,157.44,6.3514]
[1721269280039,1.26251665,157.5,157.43,15.8791]
[1721269280350,1.26251665,157.5,157.44,13.97592685]
[1721269280552,1.26251665,157.5,157.45,1.27007286]
[1721269280760,7.61171665,157.5,157.44,6.3512]
[1721269280939,7.61211665,157.49,157.43,15.8791]
[1721269281140,7.61281665,157.48,157.41,6.3524]
[1721269281349,1.26251665,157.47,157.42,7.62493361]
[1721269281554,7.61291665,157.47,157.42,7.62493361]
[1721269281750,1.26251665,157.46,157.41,7.62493361]
[1721269281968,1.26251665,157.45,157.42,7.62496437]
[1721269282160,1.26251665,157.45,157.39,15.8831]
[1721269282345,43.51831665,157.5,157.4,7.62540045]
[1721269282552,6.3508,157.46,157.4,7.62540045]
[1721269282860,1.26251665,157.45,157.4,7.62540045]
[1721269283051,1.26251665,157.45,157.4,13.97860045]
[1721269283256,1.26251665,157.45,157.35,66.6249]
[1721269283257,6.2155,157.44,157.41,7.62540045]
[1721269283568,1.26251665,157.43,157.37,6.3543]
[1721269283751,1.26251665,157.43,157.38,7.62572505]
[1721269285269,17.89291665,157.42,157.38,7.62572505]
[1721269285477,17.89291665,157.42,157.38,13.97962505]
[1721269285642,17.89291665,157.42,157.39,7.62572505]
[1721269285840,17.89291665,157.42,157.4,7.62572505]
[1721269286059,17.89291665,157.42,157.37,6.3543]
[1721269286376,17.89291665,157.42,157.38,7.62576497]
[1721269286536,24.24531665,157.42,157.36,15.8869]
[1721269286736,1.26251665,157.41,157.34,6.3556]
[1721269286955,1.26251665,157.41,157.33,15.8898]
[1721269286956,6.3533,157.4,157.33,22.2458]
[1721269287136,1.26251665,157.39,157.33,22.2458]
[1721269288071,1.26251665,157.39,157.34,6.3555]
[1721269288481,21.26251665,157.4,157.34,6.3555]
[1721269288775,6.3545,157.37,157.31,6.3565]
[1721269288976,7.61621665,157.39,157.3,15.8928]
[1721269289558,1.26251665,157.39,157.33,6.3559]
[1721269289753,1.26251665,157.39,157.35,6.3549]
[1721269290084,6.6232,157.38,157.34,22.2439]
[1721269290853,6.6232,157.38,157.34,15.8884]
[1721269291069,6.6232,157.38,157.32,6.3564]
[1721269291592,1.26251665,157.37,157.31,6.3568]
[1721269291803,1.26251665,157.37,157.3,15.8922]
[1721269291964,27.61731665,157.37,157.3,22.2494]
[1721269292282,22.507,157.36,157.3,22.2494]
[1721269292458,1.26251665,157.35,157.3,22.2494]
[1721269292986,1.26251665,157.35,157.3,15.8922]
[1721269293168,1.26251665,157.35,157.27,22.2544]
[1721269293351,27.61801665,157.35,157.28,6.358]
[1721269293563,6.3557,157.34,157.28,6.358]
[1721269293772,1.26251665,157.33,157.27,22.2544]
[1721269294687,1.26251665,157.32,157.27,22.2544]
[1721269295365,1.26251665,157.31,157.25,0.8099708]
[1721269295876,7.61941665,157.31,157.25,0.8099708]
[1721269296186,1.26251665,157.31,157.26,6.3588]
[1721269296383,21.26251665,157.31,157.26,6.3588]
[1721269296758,27.61951665,157.31,157.25,0.8099708]
[1721269296980,1.26251665,157.3,157.25,0.8099708]